[Event "Titled Tuesday Blitz April 25 Early 2023"]
[White "Caruana, Fabiano"]
[Black "Deac, Bogdan-Daniel"]
[WhiteFideId "2020009"]
[BlackFideId "1226380"]
[WhiteElo "2837"]
[BlackElo "2649"]
[Result "1-0"]
[Round "06"]
[TimeControl "180+2"]
[Date "2023.04.25"]
[WhiteClock "0:00:04"]
[BlackClock "0:00:01"]

1. d4 {[%clk 0:03:00]}  Nf6 {[%clk 0:02:59]} 2. c4 {[%clk 0:03:01]}  e6 {[%clk 0:02:59]} 3. Nc3 {[%clk 0:03:02]}  Bb4 {[%clk 0:02:59]} 4. e3 {[%clk 0:03:02]}  O-O {[%clk 0:02:59]} 5. a3 {[%clk 0:03:03]}  Bxc3+ {[%clk 0:02:59]} 6. bxc3 {[%clk 0:03:04]}  d6 {[%clk 0:02:59]} 7. Ne2 {[%clk 0:03:04]}  e5 {[%clk 0:02:59]} 8. Ng3 {[%clk 0:03:03]}  Re8 {[%clk 0:03:00]} 9. f3 {[%clk 0:03:03]}  c6 {[%clk 0:02:46]} 10. Be2 {[%clk 0:02:58]}  Qe7 {[%clk 0:02:39]} 11. O-O {[%clk 0:02:54]}  d5 {[%clk 0:02:39]} 12. a4 {[%clk 0:02:45]}  Qc7 {[%clk 0:02:26]} 13. Rb1 {[%clk 0:02:33]}  b6 {[%clk 0:02:13]} 14. cxd5 {[%clk 0:02:25]}  cxd5 {[%clk 0:02:12]} 15. Bb5 {[%clk 0:02:22]}  Bd7 {[%clk 0:02:03]} 16. Bd3 {[%clk 0:02:22]}  Nc6 {[%clk 0:01:46]} 17. Qc2 {[%clk 0:01:50]}  Na5 {[%clk 0:01:31]} 18. e4 {[%clk 0:01:28]}  Rac8 {[%clk 0:01:27]} 19. Qf2 {[%clk 0:01:00]}  dxe4 {[%clk 0:00:43]} 20. Nxe4 {[%clk 0:00:53]}  Nxe4 {[%clk 0:00:43]} 21. fxe4 {[%clk 0:00:54]}  Bxa4 {[%clk 0:00:41]} 22. dxe5 {[%clk 0:00:36]}  Nc6 {[%clk 0:00:19]} 23. Ba6 {[%clk 0:00:36]}  Rb8 {[%clk 0:00:19]} 24. Bc4 {[%clk 0:00:30]}  Nxe5 {[%clk 0:00:18]} 25. Bd5 {[%clk 0:00:31]}  Bc6 {[%clk 0:00:17]} 26. Bf4 {[%clk 0:00:30]}  Bxd5 {[%clk 0:00:17]} 27. exd5 {[%clk 0:00:31]}  Qxc3 {[%clk 0:00:11]} 28. Rbc1 {[%clk 0:00:28]}  Qb4 {[%clk 0:00:11]} 29. Bxe5 {[%clk 0:00:27]}  Rxe5 {[%clk 0:00:10]} 30. Qxf7+ {[%clk 0:00:27]}  Kh8 {[%clk 0:00:11]} 31. Rc7 {[%clk 0:00:26]}  Qd4+ {[%clk 0:00:07]} 32. Kh1 {[%clk 0:00:26]}  Ree8 {[%clk 0:00:08]} 33. d6 {[%clk 0:00:24]}  Rg8 {[%clk 0:00:07]} 34. d7 {[%clk 0:00:23]}  h6 {[%clk 0:00:07]} 35. h3 {[%clk 0:00:19]}  Qd6 {[%clk 0:00:03]} 36. Rfc1 {[%clk 0:00:13]}  Rbf8 {[%clk 0:00:03]} 37. Qc4 {[%clk 0:00:11]}  Rd8 {[%clk 0:00:03]} 38. Qg4 {[%clk 0:00:10]}  a5 {[%clk 0:00:02]} 39. Rb7 {[%clk 0:00:09]}  b5 {[%clk 0:00:02]} 40. Rd1 {[%clk 0:00:08]}  Qc6 {[%clk 0:00:02]} 41. Ra7 {[%clk 0:00:09]}  a4 {[%clk 0:00:03]} 42. Qd4 {[%clk 0:00:08]}  Qf6 {[%clk 0:00:02]} 43. Qd5 {[%clk 0:00:08]}  Qb2 {[%clk 0:00:01]} 44. Rb7 {[%clk 0:00:08]}  a3 {[%clk 0:00:02]} 45. Rxb5 {[%clk 0:00:07]}  Qc2 {[%clk 0:00:02]} 46. Ra5 {[%clk 0:00:07]}  Qb2 {[%clk 0:00:02]} 47. Rd2 {[%clk 0:00:07]}  Qc1+ {[%clk 0:00:02]} 48. Rd1 {[%clk 0:00:08]}  Qb2 {[%clk 0:00:02]} 49. Qc4 {[%clk 0:00:06]}  Rgf8 {[%clk 0:00:02]} 50. Qd5 {[%clk 0:00:06]}  Qc3 {[%clk 0:00:02]} 51. Ra4 {[%clk 0:00:06]}  Qb2 {[%clk 0:00:02]} 52. Qd3 {[%clk 0:00:06]}  Rf7 {[%clk 0:00:01]} 53. Ra7 {[%clk 0:00:04]}  Rff8 {[%clk 0:00:01]} 54. Qxa3 {[%clk 0:00:04]}  Qf2 {[%clk 0:00:01]} 55. Qa6 {[%clk 0:00:03]}  Qe3 {[%clk 0:00:01]} 56. Rb7 {[%clk 0:00:03]}  Kh7 {[%clk 0:00:01]} 57. Qd6 {[%clk 0:00:03]}  Qe4 {[%clk 0:00:02]} 58. Qd5 {[%clk 0:00:03]}  Qxd5 {[%clk 0:00:01]} 59. Rxd5 {[%clk 0:00:04]}  Rf7 {[%clk 0:00:02]} 60. Kh2 {[%clk 0:00:05]}  g5 {[%clk 0:00:02]} 61. Kg3 {[%clk 0:00:05]}  Kg6 {[%clk 0:00:02]} 62. Rb6+ {[%clk 0:00:04]}  Kg7 {[%clk 0:00:03]} 63. Rbd6 {[%clk 0:00:05]}  Re7 {[%clk 0:00:03]} 64. Kg4 {[%clk 0:00:05]}  Rf7 {[%clk 0:00:02]} 65. g3 {[%clk 0:00:05]}  Re7 {[%clk 0:00:02]} 66. Kh5 {[%clk 0:00:05]}  g4 {[%clk 0:00:02]} 67. hxg4 {[%clk 0:00:05]}  Re1 {[%clk 0:00:03]} 68. Rg6+ {[%clk 0:00:05]}  Kf7 {[%clk 0:00:03]} 69. Kxh6 {[%clk 0:00:04]}  Rh8+ {[%clk 0:00:03]} 70. Kg5 {[%clk 0:00:04]}  Rd8 {[%clk 0:00:03]} 71. Rgd6 {[%clk 0:00:04]}  Re7 {[%clk 0:00:02]} 72. Rh6 {[%clk 0:00:04]}  Kg7 {[%clk 0:00:01]} 73. Rg6+ {[%clk 0:00:04]}  Kh7 {[%clk 0:00:01]} 74. Rd1 {[%clk 0:00:04]}  Rg7 {[%clk 0:00:01]} 75. Rh1+ {[%clk 0:00:04]} 1-0


[Site "https://www.chess.com"]

[Event "Titled Tuesday Blitz April 25 Early 2023"]
[White "Chigaev, Maksim"]
[Black "Mamedyarov, Shakhriyar"]
[WhiteFideId "4108116"]
[BlackFideId "13401319"]
[WhiteElo "2547"]
[BlackElo "2704"]
[Result "1-0"]
[Round "06"]
[TimeControl "180+2"]
[Date "2023.04.25"]
[WhiteClock "0:00:09"]
[BlackClock "0:00:04"]

1. d4 {[%clk 0:03:00]}  Nf6 {[%clk 0:02:58]} 2. Bg5 {[%clk 0:03:01]}  d5 {[%clk 0:02:52]} 3. e3 {[%clk 0:03:00]}  Ne4 {[%clk 0:02:49]} 4. h4 {[%clk 0:02:58]}  Bf5 {[%clk 0:02:46]} 5. Nd2 {[%clk 0:02:55]}  Nxg5 {[%clk 0:02:45]} 6. hxg5 {[%clk 0:02:56]}  e6 {[%clk 0:02:45]} 7. f4 {[%clk 0:02:52]}  h6 {[%clk 0:02:34]} 8. Bd3 {[%clk 0:02:46]}  Bxd3 {[%clk 0:02:29]} 9. cxd3 {[%clk 0:02:47]}  c5 {[%clk 0:02:29]} 10. dxc5 {[%clk 0:02:41]}  Bxc5 {[%clk 0:02:28]} 11. d4 {[%clk 0:02:40]}  Bb4 {[%clk 0:02:24]} 12. Kf2 {[%clk 0:02:33]}  Nd7 {[%clk 0:02:11]} 13. Ndf3 {[%clk 0:02:17]}  Qb6 {[%clk 0:01:54]} 14. Ne2 {[%clk 0:02:12]}  O-O-O {[%clk 0:01:53]} 15. Qb3 {[%clk 0:02:05]}  Kb8 {[%clk 0:01:45]} 16. Rac1 {[%clk 0:02:05]}  hxg5 {[%clk 0:01:19]} 17. Nxg5 {[%clk 0:01:55]}  Rhf8 {[%clk 0:01:07]} 18. Rh7 {[%clk 0:01:27]}  f6 {[%clk 0:00:45]} 19. Nf3 {[%clk 0:01:14]}  Rf7 {[%clk 0:00:41]} 20. f5 {[%clk 0:01:00]}  Re8 {[%clk 0:00:35]} 21. Nf4 {[%clk 0:00:57]}  Nf8 {[%clk 0:00:22]} 22. Rh8 {[%clk 0:00:49]}  Rfe7 {[%clk 0:00:11]} 23. fxe6 {[%clk 0:00:45]}  Bd6 {[%clk 0:00:10]} 24. Qxb6 {[%clk 0:00:38]}  axb6 {[%clk 0:00:11]} 25. Nxd5 {[%clk 0:00:35]}  Rxe6 {[%clk 0:00:11]} 26. Rc3 {[%clk 0:00:23]}  b5 {[%clk 0:00:11]} 27. Rb3 {[%clk 0:00:23]}  b4 {[%clk 0:00:11]} 28. Nxb4 {[%clk 0:00:21]}  Kc7 {[%clk 0:00:09]} 29. Nd5+ {[%clk 0:00:16]}  Kb8 {[%clk 0:00:09]} 30. Nb6 {[%clk 0:00:16]}  Kc7 {[%clk 0:00:08]} 31. Nc4 {[%clk 0:00:16]}  Be7 {[%clk 0:00:07]} 32. d5 {[%clk 0:00:12]}  Ra6 {[%clk 0:00:07]} 33. Nd4 {[%clk 0:00:11]}  Rd8 {[%clk 0:00:04]} 34. d6+ {[%clk 0:00:11]}  Bxd6 {[%clk 0:00:04]} 35. Nb5+ {[%clk 0:00:09]} 1-0


[Site "https://www.chess.com"]

[Event "Titled Tuesday Blitz April 25 Early 2023"]
[White "Moussard, Jules"]
[Black "Gupta, Abhijeet"]
[WhiteFideId "642908"]
[BlackFideId "5010608"]
[WhiteElo "2610"]
[BlackElo "2528"]
[Result "0-1"]
[Round "06"]
[TimeControl "180+2"]
[Date "2023.04.25"]
[WhiteClock "0:00:02"]
[BlackClock "0:00:11"]

1. e4 {[%clk 0:03:00]}  c5 {[%clk 0:03:00]} 2. Nf3 {[%clk 0:03:01]}  d6 {[%clk 0:03:00]} 3. d4 {[%clk 0:03:00]}  cxd4 {[%clk 0:03:01]} 4. Nxd4 {[%clk 0:03:01]}  Nf6 {[%clk 0:03:02]} 5. Nc3 {[%clk 0:02:57]}  Nc6 {[%clk 0:03:01]} 6. g3 {[%clk 0:02:56]}  g6 {[%clk 0:02:56]} 7. Bg2 {[%clk 0:02:56]}  Nxd4 {[%clk 0:02:56]} 8. Qxd4 {[%clk 0:02:57]}  Bg7 {[%clk 0:02:56]} 9. O-O {[%clk 0:02:56]}  O-O {[%clk 0:02:56]} 10. Qd3 {[%clk 0:02:55]}  a6 {[%clk 0:02:47]} 11. a4 {[%clk 0:02:55]}  Rb8 {[%clk 0:02:44]} 12. Re1 {[%clk 0:02:37]}  Bd7 {[%clk 0:02:29]} 13. a5 {[%clk 0:02:36]}  Bc6 {[%clk 0:02:24]} 14. Be3 {[%clk 0:02:35]}  Nd7 {[%clk 0:02:22]} 15. Qe2 {[%clk 0:02:22]}  Rc8 {[%clk 0:02:12]} 16. Bd2 {[%clk 0:02:02]}  Nc5 {[%clk 0:01:57]} 17. Red1 {[%clk 0:01:52]}  Qc7 {[%clk 0:01:57]} 18. Qe3 {[%clk 0:01:47]}  Ne6 {[%clk 0:01:48]} 19. Be1 {[%clk 0:01:47]}  Rfd8 {[%clk 0:01:44]} 20. Nd5 {[%clk 0:01:44]}  Bxd5 {[%clk 0:01:38]} 21. exd5 {[%clk 0:01:44]}  Nc5 {[%clk 0:01:33]} 22. c4 {[%clk 0:01:35]}  Bxb2 {[%clk 0:01:30]} 23. Rab1 {[%clk 0:01:33]}  Bf6 {[%clk 0:01:30]} 24. h4 {[%clk 0:01:32]}  Nd7 {[%clk 0:01:22]} 25. Rdc1 {[%clk 0:01:31]}  Ne5 {[%clk 0:01:21]} 26. Qe2 {[%clk 0:01:19]}  h5 {[%clk 0:01:20]} 27. Rb3 {[%clk 0:01:13]}  Rb8 {[%clk 0:01:05]} 28. Qe3 {[%clk 0:01:06]}  Ng4 {[%clk 0:01:02]} 29. Qd3 {[%clk 0:00:56]}  Qc5 {[%clk 0:01:00]} 30. Qe2 {[%clk 0:00:43]}  Ne5 {[%clk 0:00:43]} 31. Bf1 {[%clk 0:00:42]}  Kg7 {[%clk 0:00:40]} 32. Kg2 {[%clk 0:00:42]}  Rd7 {[%clk 0:00:37]} 33. Rcb1 {[%clk 0:00:41]}  Ng4 {[%clk 0:00:34]} 34. Bb4 {[%clk 0:00:39]}  Qc8 {[%clk 0:00:33]} 35. Bd2 {[%clk 0:00:38]}  Rc7 {[%clk 0:00:33]} 36. Qe4 {[%clk 0:00:35]}  Ne5 {[%clk 0:00:25]} 37. Rc1 {[%clk 0:00:35]}  Qf5 {[%clk 0:00:23]} 38. Qxf5 {[%clk 0:00:35]}  gxf5 {[%clk 0:00:24]} 39. Be2 {[%clk 0:00:34]}  Kg6 {[%clk 0:00:23]} 40. Be3 {[%clk 0:00:32]}  Rbc8 {[%clk 0:00:23]} 41. Bb6 {[%clk 0:00:32]}  Rd7 {[%clk 0:00:22]} 42. f4 {[%clk 0:00:31]}  Ng4 {[%clk 0:00:21]} 43. Bd3 {[%clk 0:00:30]}  e5 {[%clk 0:00:21]} 44. fxe5 {[%clk 0:00:20]}  dxe5 {[%clk 0:00:19]} 45. Be2 {[%clk 0:00:19]}  e4 {[%clk 0:00:18]} 46. Rd1 {[%clk 0:00:19]}  Be7 {[%clk 0:00:18]} 47. Bd4 {[%clk 0:00:11]}  Bc5 {[%clk 0:00:17]} 48. Bxg4 {[%clk 0:00:09]}  fxg4 {[%clk 0:00:15]} 49. Kf2 {[%clk 0:00:09]}  Bxd4+ {[%clk 0:00:11]} 50. Rxd4 {[%clk 0:00:10]}  f5 {[%clk 0:00:11]} 51. Ke3 {[%clk 0:00:10]}  Rc5 {[%clk 0:00:10]} 52. Rb6+ {[%clk 0:00:10]}  Kg7 {[%clk 0:00:11]} 53. Kf4 {[%clk 0:00:11]}  Rxa5 {[%clk 0:00:09]} 54. Kxf5 {[%clk 0:00:11]}  e3 {[%clk 0:00:09]} 55. Rg6+ {[%clk 0:00:10]}  Kf7 {[%clk 0:00:08]} 56. Re4 {[%clk 0:00:08]}  Raxd5+ {[%clk 0:00:07]} 57. cxd5 {[%clk 0:00:08]}  Rxd5+ {[%clk 0:00:08]} 58. Kf4 {[%clk 0:00:07]}  Kxg6 {[%clk 0:00:08]} 59. Re6+ {[%clk 0:00:07]}  Kf7 {[%clk 0:00:08]} 60. Rxe3 {[%clk 0:00:08]}  b5 {[%clk 0:00:08]} 61. Rc3 {[%clk 0:00:09]}  a5 {[%clk 0:00:08]} 62. Ke4 {[%clk 0:00:09]}  Rd1 {[%clk 0:00:05]} 63. Rc5 {[%clk 0:00:08]}  Rb1 {[%clk 0:00:05]} 64. Rxh5 {[%clk 0:00:06]}  a4 {[%clk 0:00:05]} 65. Kd3 {[%clk 0:00:07]}  a3 {[%clk 0:00:06]} 66. Rh7+ {[%clk 0:00:06]}  Kg6 {[%clk 0:00:06]} 67. Ra7 {[%clk 0:00:06]}  b4 {[%clk 0:00:06]} 68. Ra6+ {[%clk 0:00:07]}  Kf5 {[%clk 0:00:06]} 69. h5 {[%clk 0:00:08]}  Rh1 {[%clk 0:00:07]} 70. Kc4 {[%clk 0:00:07]}  Rxh5 {[%clk 0:00:06]} 71. Kxb4 {[%clk 0:00:08]}  Rh1 {[%clk 0:00:05]} 72. Rxa3 {[%clk 0:00:08]}  Ke4 {[%clk 0:00:06]} 73. Kc4 {[%clk 0:00:07]}  Rc1+ {[%clk 0:00:06]} 74. Kb5 {[%clk 0:00:06]}  Rf1 {[%clk 0:00:06]} 75. Kc5 {[%clk 0:00:06]}  Rf3 {[%clk 0:00:07]} 76. Ra4+ {[%clk 0:00:06]}  Kf5 {[%clk 0:00:07]} 77. Kd4 {[%clk 0:00:06]}  Rxg3 {[%clk 0:00:07]} 78. Ra8 {[%clk 0:00:06]}  Rb3 {[%clk 0:00:08]} 79. Rf8+ {[%clk 0:00:05]}  Kg5 {[%clk 0:00:08]} 80. Ke4 {[%clk 0:00:06]}  Kh4 {[%clk 0:00:09]} 81. Rf1 {[%clk 0:00:03]}  Kg3 {[%clk 0:00:09]} 82. Rg1+ {[%clk 0:00:03]}  Kh3 {[%clk 0:00:10]} 83. Kf4 {[%clk 0:00:04]}  Rf3+ {[%clk 0:00:09]} 84. Ke4 {[%clk 0:00:04]}  Rf8 {[%clk 0:00:09]} 85. Rh1+ {[%clk 0:00:05]}  Kg2 {[%clk 0:00:09]} 86. Rh7 {[%clk 0:00:05]}  g3 {[%clk 0:00:10]} 87. Ke3 {[%clk 0:00:06]}  Kg1 {[%clk 0:00:10]} 88. Ke2 {[%clk 0:00:06]}  g2 {[%clk 0:00:11]} 89. Rh6 {[%clk 0:00:05]}  Re8+ {[%clk 0:00:10]} 90. Kd2 {[%clk 0:00:05]}  Re5 {[%clk 0:00:11]} 91. Rf6 {[%clk 0:00:04]}  Re4 {[%clk 0:00:10]} 92. Kd3 {[%clk 0:00:03]}  Rh4 {[%clk 0:00:10]} 93. Ra6 {[%clk 0:00:01]}  Kh2 {[%clk 0:00:10]} 94. Ra2 {[%clk 0:00:02]}  Kh1 {[%clk 0:00:11]} 0-1


[Site "https://www.chess.com"]

[Event "Titled Tuesday Blitz April 25 Early 2023"]
[White "Pranesh M"]
[Black "Naroditsky, Daniel"]
[WhiteFideId "35028600"]
[BlackFideId "2026961"]
[WhiteElo "2437"]
[BlackElo "2633"]
[Result "1/2-1/2"]
[Round "06"]
[TimeControl "180+2"]
[Date "2023.04.25"]
[WhiteClock "0:00:32"]
[BlackClock "0:00:02"]

1. e4 {[%clk 0:03:00]}  c5 {[%clk 0:02:54]} 2. Nf3 {[%clk 0:02:59]}  d6 {[%clk 0:02:54]} 3. d4 {[%clk 0:02:59]}  cxd4 {[%clk 0:02:55]} 4. Nxd4 {[%clk 0:03:00]}  Nf6 {[%clk 0:02:56]} 5. Nc3 {[%clk 0:03:00]}  a6 {[%clk 0:02:57]} 6. Bd3 {[%clk 0:03:00]}  e5 {[%clk 0:02:52]} 7. Nde2 {[%clk 0:03:00]}  Be7 {[%clk 0:02:49]} 8. O-O {[%clk 0:03:00]}  b5 {[%clk 0:02:45]} 9. a4 {[%clk 0:02:59]}  b4 {[%clk 0:02:45]} 10. Nd5 {[%clk 0:03:00]}  Nxd5 {[%clk 0:02:43]} 11. exd5 {[%clk 0:03:01]}  O-O {[%clk 0:02:38]} 12. a5 {[%clk 0:02:59]}  Nd7 {[%clk 0:02:31]} 13. Be3 {[%clk 0:02:56]}  f5 {[%clk 0:02:23]} 14. f3 {[%clk 0:02:56]}  Qc7 {[%clk 0:02:22]} 15. Qd2 {[%clk 0:02:52]}  Rb8 {[%clk 0:02:20]} 16. Kh1 {[%clk 0:02:48]}  Nc5 {[%clk 0:02:19]} 17. Bc4 {[%clk 0:02:46]}  Ne4 {[%clk 0:02:00]} 18. Qd3 {[%clk 0:02:43]}  Nc5 {[%clk 0:02:01]} 19. Bxc5 {[%clk 0:02:12]}  Qxc5 {[%clk 0:02:02]} 20. Bxa6 {[%clk 0:02:13]}  Bxa6 {[%clk 0:01:39]} 21. Qxa6 {[%clk 0:02:14]}  Qxc2 {[%clk 0:01:39]} 22. Rac1 {[%clk 0:02:04]}  Qxb2 {[%clk 0:01:34]} 23. Rc7 {[%clk 0:02:05]}  Bf6 {[%clk 0:01:26]} 24. Ng3 {[%clk 0:02:01]}  e4 {[%clk 0:00:48]} 25. fxe4 {[%clk 0:01:34]}  fxe4 {[%clk 0:00:49]} 26. Qxd6 {[%clk 0:01:28]}  Qe5 {[%clk 0:00:40]} 27. Qe6+ {[%clk 0:01:12]}  Qxe6 {[%clk 0:00:33]} 28. dxe6 {[%clk 0:01:13]}  Be5 {[%clk 0:00:11]} 29. Rxf8+ {[%clk 0:01:00]}  Rxf8 {[%clk 0:00:11]} 30. Rb7 {[%clk 0:00:59]}  Bxg3 {[%clk 0:00:04]} 31. hxg3 {[%clk 0:01:00]}  e3 {[%clk 0:00:05]} 32. e7 {[%clk 0:00:41]}  e2 {[%clk 0:00:03]} 33. exf8=Q+ {[%clk 0:00:36]}  Kxf8 {[%clk 0:00:04]} 34. a6 {[%clk 0:00:36]}  e1=Q+ {[%clk 0:00:04]} 35. Kh2 {[%clk 0:00:37]}  Qe6 {[%clk 0:00:02]} 36. a7 {[%clk 0:00:30]}  Qh6+ {[%clk 0:00:03]} 37. Kg1 {[%clk 0:00:31]}  Qe3+ {[%clk 0:00:04]} 38. Kh2 {[%clk 0:00:31]}  Qh6+ {[%clk 0:00:03]} 39. Kg1 {[%clk 0:00:32]}  Qe3+ {[%clk 0:00:02]} 40. Kh2 {[%clk 0:00:32]}  Qh6+ {[%clk 0:00:02]} 1/2-1/2


[Site "https://www.chess.com"]

[Event "Titled Tuesday Blitz April 25 Early 2023"]
[White "Korobov, Anton"]
[Black "Demchenko, Anton"]
[WhiteFideId "14105730"]
[BlackFideId "4160258"]
[WhiteElo "2638"]
[BlackElo "2545"]
[Result "1-0"]
[Round "06"]
[TimeControl "180+2"]
[Date "2023.04.25"]
[WhiteClock "0:01:06"]
[BlackClock "0:00:06"]

1. c4 {[%clk 0:03:00]}  e5 {[%clk 0:02:59]} 2. d3 {[%clk 0:03:00]}  d6 {[%clk 0:02:56]} 3. Nc3 {[%clk 0:02:59]}  f5 {[%clk 0:02:53]} 4. g3 {[%clk 0:02:59]}  Nf6 {[%clk 0:02:53]} 5. Bg2 {[%clk 0:03:00]}  Be7 {[%clk 0:02:54]} 6. e4 {[%clk 0:02:59]}  fxe4 {[%clk 0:02:45]} 7. dxe4 {[%clk 0:02:56]}  Be6 {[%clk 0:02:45]} 8. Nge2 {[%clk 0:02:53]}  O-O {[%clk 0:02:42]} 9. b3 {[%clk 0:02:49]}  c5 {[%clk 0:02:35]} 10. O-O {[%clk 0:02:47]}  Nc6 {[%clk 0:02:36]} 11. Nd5 {[%clk 0:02:45]}  Nd4 {[%clk 0:02:26]} 12. Nxd4 {[%clk 0:02:32]}  cxd4 {[%clk 0:02:25]} 13. f4 {[%clk 0:02:32]}  Rc8 {[%clk 0:02:05]} 14. Ba3 {[%clk 0:02:20]}  Bxd5 {[%clk 0:01:30]} 15. exd5 {[%clk 0:02:18]}  b5 {[%clk 0:01:25]} 16. Rc1 {[%clk 0:01:48]}  Qa5 {[%clk 0:01:15]} 17. Bb2 {[%clk 0:01:31]}  bxc4 {[%clk 0:01:08]} 18. bxc4 {[%clk 0:01:31]}  Qxa2 {[%clk 0:01:08]} 19. Rf2 {[%clk 0:01:31]}  Qa5 {[%clk 0:00:51]} 20. Bh3 {[%clk 0:01:20]}  Rb8 {[%clk 0:00:43]} 21. Qd3 {[%clk 0:01:17]}  exf4 {[%clk 0:00:18]} 22. Bxd4 {[%clk 0:01:07]}  fxg3 {[%clk 0:00:14]} 23. hxg3 {[%clk 0:01:08]}  Qc7 {[%clk 0:00:10]} 24. Be6+ {[%clk 0:01:07]}  Kh8 {[%clk 0:00:11]} 25. Rh2 {[%clk 0:01:07]}  h6 {[%clk 0:00:09]} 26. Qg6 {[%clk 0:01:07]}  Bd8 {[%clk 0:00:05]} 27. Rxh6+ {[%clk 0:01:06]}  gxh6 {[%clk 0:00:06]} 28. Qxh6+ {[%clk 0:01:06]} 1-0


[Site "https://www.chess.com"]

[Event "Titled Tuesday Blitz April 25 Early 2023"]
[White "Bilych, Olexiy"]
[Black "Svane, Rasmus"]
[WhiteFideId "14156504"]
[BlackFideId "4657101"]
[WhiteElo "2320"]
[BlackElo "2597"]
[Result "1-0"]
[Round "06"]
[TimeControl "180+2"]
[Date "2023.04.25"]
[WhiteClock "0:00:14"]
[BlackClock "0:00:01"]

1. d4 {[%clk 0:03:00]}  Nf6 {[%clk 0:02:59]} 2. c4 {[%clk 0:02:59]}  e6 {[%clk 0:03:00]} 3. Nf3 {[%clk 0:02:58]}  d5 {[%clk 0:02:59]} 4. Nc3 {[%clk 0:02:58]}  h6 {[%clk 0:02:59]} 5. g3 {[%clk 0:02:55]}  Bd6 {[%clk 0:02:58]} 6. Bg2 {[%clk 0:02:55]}  O-O {[%clk 0:02:58]} 7. O-O {[%clk 0:02:55]}  Nc6 {[%clk 0:02:59]} 8. b3 {[%clk 0:02:53]}  Re8 {[%clk 0:02:59]} 9. Bb2 {[%clk 0:02:52]}  dxc4 {[%clk 0:02:59]} 10. bxc4 {[%clk 0:02:52]}  e5 {[%clk 0:03:00]} 11. e3 {[%clk 0:02:42]}  Bf5 {[%clk 0:02:51]} 12. Nb5 {[%clk 0:02:33]}  exd4 {[%clk 0:02:42]} 13. exd4 {[%clk 0:02:32]}  Bf8 {[%clk 0:02:31]} 14. d5 {[%clk 0:02:21]}  Nb4 {[%clk 0:02:31]} 15. Bxf6 {[%clk 0:02:01]}  gxf6 {[%clk 0:02:21]} 16. a3 {[%clk 0:02:01]}  Nc2 {[%clk 0:01:54]} 17. Ra2 {[%clk 0:01:56]}  c6 {[%clk 0:01:47]} 18. Nbd4 {[%clk 0:01:53]}  Nxd4 {[%clk 0:01:46]} 19. Nxd4 {[%clk 0:01:54]}  Bg6 {[%clk 0:01:44]} 20. dxc6 {[%clk 0:01:53]}  bxc6 {[%clk 0:01:23]} 21. Nxc6 {[%clk 0:01:54]}  Qxd1 {[%clk 0:01:04]} 22. Rxd1 {[%clk 0:01:54]}  Rac8 {[%clk 0:01:05]} 23. a4 {[%clk 0:01:47]}  Rc7 {[%clk 0:01:05]} 24. a5 {[%clk 0:01:47]}  Rec8 {[%clk 0:01:03]} 25. Nb4 {[%clk 0:01:18]}  Rxc4 {[%clk 0:01:01]} 26. Nd5 {[%clk 0:01:18]}  Kg7 {[%clk 0:00:59]} 27. a6 {[%clk 0:01:08]}  Rc1 {[%clk 0:00:57]} 28. Ra1 {[%clk 0:01:08]}  Rxd1+ {[%clk 0:00:53]} 29. Rxd1 {[%clk 0:01:09]}  Rc2 {[%clk 0:00:50]} 30. Ne3 {[%clk 0:01:02]}  Ra2 {[%clk 0:00:50]} 31. Bf1 {[%clk 0:01:01]}  Bc5 {[%clk 0:00:49]} 32. Bc4 {[%clk 0:00:53]}  Ra4 {[%clk 0:00:49]} 33. Bb5 {[%clk 0:00:49]}  Rb4 {[%clk 0:00:45]} 34. Bf1 {[%clk 0:00:48]}  Be4 {[%clk 0:00:39]} 35. Rc1 {[%clk 0:00:41]}  Bb6 {[%clk 0:00:33]} 36. Rc4 {[%clk 0:00:41]}  Rxc4 {[%clk 0:00:31]} 37. Bxc4 {[%clk 0:00:41]}  f5 {[%clk 0:00:28]} 38. Kf1 {[%clk 0:00:39]}  Bxe3 {[%clk 0:00:18]} 39. fxe3 {[%clk 0:00:39]}  Kf6 {[%clk 0:00:19]} 40. Ke2 {[%clk 0:00:38]}  Ke7 {[%clk 0:00:19]} 41. Kd2 {[%clk 0:00:37]}  f6 {[%clk 0:00:13]} 42. Kc3 {[%clk 0:00:23]}  Kd6 {[%clk 0:00:13]} 43. Kd4 {[%clk 0:00:23]}  Bc6 {[%clk 0:00:10]} 44. Bd3 {[%clk 0:00:22]}  Bd7 {[%clk 0:00:10]} 45. Bc2 {[%clk 0:00:17]}  Be6 {[%clk 0:00:10]} 46. Ba4 {[%clk 0:00:16]}  Bc8 {[%clk 0:00:10]} 47. Bb5 {[%clk 0:00:15]}  Be6 {[%clk 0:00:10]} 48. Ba4 {[%clk 0:00:14]}  Bf7 {[%clk 0:00:07]} 49. Bb5 {[%clk 0:00:14]}  Bg6 {[%clk 0:00:07]} 50. Bd3 {[%clk 0:00:12]}  Be8 {[%clk 0:00:05]} 51. Bxf5 {[%clk 0:00:12]}  Bb5 {[%clk 0:00:05]} 52. Bd3 {[%clk 0:00:09]}  Bxd3 {[%clk 0:00:05]} 53. Kxd3 {[%clk 0:00:10]}  Kc5 {[%clk 0:00:06]} 54. Ke4 {[%clk 0:00:11]}  Kb6 {[%clk 0:00:06]} 55. Kf5 {[%clk 0:00:11]}  Kxa6 {[%clk 0:00:07]} 56. Kxf6 {[%clk 0:00:12]}  Kb6 {[%clk 0:00:04]} 57. e4 {[%clk 0:00:13]}  a5 {[%clk 0:00:04]} 58. e5 {[%clk 0:00:13]}  a4 {[%clk 0:00:05]} 59. e6 {[%clk 0:00:14]}  a3 {[%clk 0:00:06]} 60. e7 {[%clk 0:00:15]}  a2 {[%clk 0:00:06]} 61. e8=Q {[%clk 0:00:15]}  a1=Q+ {[%clk 0:00:07]} 62. Qe5 {[%clk 0:00:16]}  Qf1+ {[%clk 0:00:04]} 63. Kg6 {[%clk 0:00:16]}  Qg2 {[%clk 0:00:03]} 64. Qe3+ {[%clk 0:00:15]}  Kc7 {[%clk 0:00:03]} 65. Qxh6 {[%clk 0:00:16]}  Qe4+ {[%clk 0:00:03]} 66. Kh5 {[%clk 0:00:15]}  Qe2+ {[%clk 0:00:02]} 67. Kg6 {[%clk 0:00:14]}  Qe6+ {[%clk 0:00:03]} 68. Kh7 {[%clk 0:00:14]}  Qe4+ {[%clk 0:00:02]} 69. Qg6 {[%clk 0:00:14]}  Qg2 {[%clk 0:00:02]} 70. Qf7+ {[%clk 0:00:14]}  Kd6 {[%clk 0:00:02]} 71. Qf4+ {[%clk 0:00:15]}  Kd5 {[%clk 0:00:02]} 72. h4 {[%clk 0:00:15]}  Qc2+ {[%clk 0:00:02]} 73. Kh6 {[%clk 0:00:15]}  Qc6+ {[%clk 0:00:02]} 74. Kh5 {[%clk 0:00:16]}  Qe8+ {[%clk 0:00:02]} 75. Kg4 {[%clk 0:00:16]}  Kc5 {[%clk 0:00:01]} 76. Qf5+ {[%clk 0:00:15]}  Kb4 {[%clk 0:00:01]} 77. Kf3 {[%clk 0:00:15]}  Ka3 {[%clk 0:00:01]} 78. Qd3+ {[%clk 0:00:14]}  Ka4 {[%clk 0:00:01]} 79. Qe4+ {[%clk 0:00:14]} 1-0


[Site "https://www.chess.com"]